[Event "*** Titled Tuesday Blitz"]
[Site "Chess.com"]
[Date "2021.04.06"]
[Round "4"]
[White "Dave_ChessMate"]
[Black "Zhigalko_Sergei"]
[Result "0-1"]
[WhiteElo "2483"]
[BlackElo "2906"]
[TimeControl "180+1"]
[EndTime "10:40:43 PDT"]
[Termination "Zhigalko_Sergei won by resignation"]

1. e4 {[%clk 0:02:54.4]} 1... c5 {[%clk 0:03:00.1]} 2. Nc3 {[%clk 0:02:48.1]}
2... Nc6 {[%clk 0:03:00.4]} 3. Bb5 {[%clk 0:02:48.3]} 3... Nd4 {[%clk
0:03:00.2]} 4. Nf3 {[%clk 0:02:48.7]} 4... e6 {[%clk 0:02:59.9]} 5. O-O {[%clk
0:02:46.7]} 5... a6 {[%clk 0:02:58.7]} 6. Bd3 {[%clk 0:02:45.4]} 6... Nxf3+
{[%clk 0:02:58.1]} 7. Qxf3 {[%clk 0:02:44]} 7... Bd6 {[%clk 0:02:57.7]} 8. Qh3
{[%clk 0:02:26.3]} 8... Qc7 {[%clk 0:02:53.9]} 9. b3 {[%clk 0:02:20.2]} 9... Ne7
{[%clk 0:02:51.6]} 10. Bb2 {[%clk 0:02:20.6]} 10... Ng6 {[%clk 0:02:50.8]} 11.
g3 {[%clk 0:02:14.8]} 11... b5 {[%clk 0:02:45.2]} 12. Bxb5 {[%clk 0:02:01.3]}
12... h5 {[%clk 0:02:25.6]} 13. Be2 {[%clk 0:01:54.8]} 13... h4 {[%clk 0:02:25]}
14. Qg4 {[%clk 0:01:44.1]} 14... Bb7 {[%clk 0:02:17.9]} 15. d3 {[%clk
0:01:37.9]} 15... Be5 {[%clk 0:02:10.1]} 16. Na4 {[%clk 0:01:35.5]} 16... O-O-O
{[%clk 0:02:04.6]} 17. c3 {[%clk 0:01:27.7]} 17... Rh6 {[%clk 0:01:30.6]} 18. d4
{[%clk 0:01:20.9]} 18... f5 {[%clk 0:01:26.2]} 19. Qg5 {[%clk 0:01:16.8]} 19...
Bf6 {[%clk 0:01:16.4]} 20. Qe3 {[%clk 0:01:14.3]} 20... hxg3 {[%clk 0:00:32.9]}
21. fxg3 {[%clk 0:01:14.4]} 21... Rdh8 {[%clk 0:00:31.8]} 22. Rf2 {[%clk
0:01:13.9]} 22... Bxe4 {[%clk 0:00:29.5]} 23. Nxc5 {[%clk 0:01:08.9]} 23... Ba8
{[%clk 0:00:27.2]} 24. Bxa6+ {[%clk 0:01:08.4]} 24... Kd8 {[%clk 0:00:26.3]} 25.
d5 {[%clk 0:01:05.1]} 25... Ne5 {[%clk 0:00:18.8]} 26. Be2 {[%clk 0:01:01.3]}
26... Bxd5 {[%clk 0:00:17]} 27. Rd1 {[%clk 0:00:56]} 27... Rh3 {[%clk
0:00:06.5]} 28. Na6 {[%clk 0:00:35.7]} 28... Ng4 {[%clk 0:00:02.3]} 29. Bxg4
{[%clk 0:00:25.6]} 29... Rxg3+ {[%clk 0:00:02.3]} 30. Kf1 {[%clk 0:00:22.1]}
30... Rxe3 {[%clk 0:00:02.6]} 31. Nxc7 {[%clk 0:00:20]} 31... Kxc7 {[%clk
0:00:03.4]} 32. Bxf5 {[%clk 0:00:20.9]} 32... Bf3 {[%clk 0:00:02.9]} 33. Rd3
{[%clk 0:00:17.4]} 33... Rxd3 {[%clk 0:00:02.6]} 34. Bxd3 {[%clk 0:00:17.5]}
34... Bc6 {[%clk 0:00:03.4]} 35. c4 {[%clk 0:00:16.1]} 35... Rh3 {[%clk
0:00:03.4]} 36. Bxf6 {[%clk 0:00:11.1]} 36... gxf6 {[%clk 0:00:04.3]} 37. Be2
{[%clk 0:00:06.6]} 37... f5 {[%clk 0:00:04.8]} 38. a4 {[%clk 0:00:05.6]} 38...
Rxb3 {[%clk 0:00:04.4]} 39. h4 {[%clk 0:00:04.5]} 39... Ra3 {[%clk 0:00:03.3]}
40. Kg1 {[%clk 0:00:02.9]} 40... Rxa4 {[%clk 0:00:03.1]} 41. h5 {[%clk
0:00:03.2]} 41... Kd6 {[%clk 0:00:02.9]} 42. h6 {[%clk 0:00:03.2]} 42... Ra1+
{[%clk 0:00:02.8]} 43. Kh2 {[%clk 0:00:03.3]} 43... Rh1+ {[%clk 0:00:02.7]} 44.
Kg3 {[%clk 0:00:03.5]} 44... Rxh6 {[%clk 0:00:03.6]} 45. Bf1 {[%clk 0:00:02.9]}
45... Kc5 {[%clk 0:00:03.8]} 46. Rd2 {[%clk 0:00:02.8]} 46... Rg6+ {[%clk
0:00:04.1]} 47. Kf4 {[%clk 0:00:02.8]} 47... Rg4+ {[%clk 0:00:05]} 48. Ke5
{[%clk 0:00:02]} 48... Re4+ {[%clk 0:00:05.6]} 49. Kf6 {[%clk 0:00:02.6]} 49...
Rf4 {[%clk 0:00:06.3]} 50. Rb2 {[%clk 0:00:01.4]} 50... Rxf1 {[%clk 0:00:06.3]}
0-1

[Event "*** Titled Tuesday Blitz"]
[Site "Chess.com"]
[Date "2021.04.06"]
[Round "4"]
[White "lagedema"]
[Black "chessablanca"]
[Result "0-1"]
[WhiteElo "2599"]
[BlackElo "2498"]
[TimeControl "180+1"]
[EndTime "10:40:45 PDT"]
[Termination "chessablanca won on time"]

1. d4 {[%clk 0:03:00.9]} 1... Nf6 {[%clk 0:02:59.4]} 2. Bg5 {[%clk 0:03:01]}
2... e6 {[%clk 0:02:59.2]} 3. e4 {[%clk 0:03:00.3]} 3... h6 {[%clk 0:02:59.2]}
4. Bxf6 {[%clk 0:03:00.8]} 4... Qxf6 {[%clk 0:02:59.5]} 5. c3 {[%clk 0:03:01.7]}
5... g6 {[%clk 0:02:59.5]} 6. Bd3 {[%clk 0:03:01.8]} 6... Bg7 {[%clk 0:02:59.6]}
7. Ne2 {[%clk 0:03:02.4]} 7... d6 {[%clk 0:02:58.8]} 8. O-O {[%clk 0:03:02.7]}
8... Nd7 {[%clk 0:02:58.8]} 9. f4 {[%clk 0:03:03.2]} 9... Qe7 {[%clk 0:02:58.8]}
10. Nd2 {[%clk 0:02:59.8]} 10... e5 {[%clk 0:02:55.1]} 11. Nf3 {[%clk
0:02:58.8]} 11... O-O {[%clk 0:02:51.9]} 12. Qd2 {[%clk 0:02:57.7]} 12... exd4
{[%clk 0:02:49.1]} 13. cxd4 {[%clk 0:02:56.6]} 13... c5 {[%clk 0:02:48.6]} 14.
Rae1 {[%clk 0:02:50.3]} 14... cxd4 {[%clk 0:02:35.5]} 15. Nexd4 {[%clk
0:02:51.2]} 15... Nc5 {[%clk 0:02:35]} 16. Bc2 {[%clk 0:02:44.1]} 16... Bg4
{[%clk 0:02:29.7]} 17. b4 {[%clk 0:02:43.9]} 17... Ne6 {[%clk 0:02:27.9]} 18.
Bb3 {[%clk 0:02:40.7]} 18... Rac8 {[%clk 0:02:23.7]} 19. f5 {[%clk 0:02:36.7]}
19... Nxd4 {[%clk 0:02:15.9]} 20. Nxd4 {[%clk 0:02:37.6]} 20... Kh7 {[%clk
0:01:49.2]} 21. h3 {[%clk 0:02:16.3]} 21... Qe5 {[%clk 0:01:45.2]} 22. Nc2
{[%clk 0:02:15.3]} 22... Bh5 {[%clk 0:01:11.4]} 23. g4 {[%clk 0:02:01]} 23...
Bf6 {[%clk 0:00:57.6]} 24. gxh5 {[%clk 0:01:55.3]} 24... gxh5 {[%clk 0:00:57.2]}
25. Kh1 {[%clk 0:01:53.3]} 25... Bh4 {[%clk 0:00:48.3]} 26. Re2 {[%clk 0:01:46]}
26... Bg5 {[%clk 0:00:48]} 27. Qd5 {[%clk 0:01:39.8]} 27... Qg3 {[%clk
0:00:47.3]} 28. Rh2 {[%clk 0:01:18.6]} 28... Bf4 {[%clk 0:00:44.2]} 29. Rg2
{[%clk 0:01:00.9]} 29... Qxh3+ {[%clk 0:00:39.2]} 30. Kg1 {[%clk 0:01:01.3]}
30... Bh2+ {[%clk 0:00:26.3]} 31. Kh1 {[%clk 0:00:39.1]} 31... Bf4+ {[%clk
0:00:20.7]} 32. Kg1 {[%clk 0:00:37.9]} 32... Bh2+ {[%clk 0:00:21.3]} 33. Kf2
{[%clk 0:00:33.4]} 33... Bf4 {[%clk 0:00:21.2]} 34. Rfg1 {[%clk 0:00:21.6]}
34... Be5 {[%clk 0:00:14.9]} 35. Ke2 {[%clk 0:00:18.5]} 35... Rc3 {[%clk
0:00:13]} 36. f6 {[%clk 0:00:15.5]} 36... Qf3+ {[%clk 0:00:12.8]} 37. Ke1 {[%clk
0:00:14.7]} 37... Bxf6 {[%clk 0:00:10.6]} 38. Qf5+ {[%clk 0:00:13.1]} 38... Qxf5
{[%clk 0:00:10.2]} 39. exf5 {[%clk 0:00:14]} 39... Bh4+ {[%clk 0:00:10.9]} 40.
Kd2 {[%clk 0:00:14.2]} 40... Rf3 {[%clk 0:00:10.6]} 41. Nd4 {[%clk 0:00:13.8]}
41... Rf2+ {[%clk 0:00:09.7]} 42. Kd3 {[%clk 0:00:11.1]} 42... Rxg2 {[%clk
0:00:09.9]} 43. Rxg2 {[%clk 0:00:10]} 43... Bf6 {[%clk 0:00:10.8]} 44. Ne2
{[%clk 0:00:09.6]} 44... h4 {[%clk 0:00:11.4]} 45. Nc3 {[%clk 0:00:09.9]} 45...
Be5 {[%clk 0:00:11.9]} 46. Ne4 {[%clk 0:00:09.3]} 46... h3 {[%clk 0:00:12.2]}
47. Rg1 {[%clk 0:00:09.5]} 47... h2 {[%clk 0:00:11.7]} 48. Rh1 {[%clk
0:00:09.7]} 48... Rg8 {[%clk 0:00:12.3]} 49. Bxf7 {[%clk 0:00:07]} 49... Rg1
{[%clk 0:00:12.7]} 50. Nf2 {[%clk 0:00:04.4]} 50... Rg2 {[%clk 0:00:12.9]} 51.
Ke3 {[%clk 0:00:03.6]} 51... Bg3 {[%clk 0:00:11.5]} 52. Ne4 {[%clk 0:00:02.3]}
52... Be5 {[%clk 0:00:10.9]} 53. Kf3 {[%clk 0:00:01.9]} 53... Rxa2 {[%clk
0:00:11.3]} 0-1

[Event "*** Titled Tuesday Blitz"]
[Site "Chess.com"]
[Date "2021.04.06"]
[Round "4"]
[White "elohunter1999"]
[Black "1977Ivan"]
[Result "0-1"]
[WhiteElo "2535"]
[BlackElo "2755"]
[TimeControl "180+1"]
[EndTime "10:40:46 PDT"]
[Termination "1977Ivan won on time"]

1. d4 {[%clk 0:03:00.9]} 1... Nf6 {[%clk 0:02:59.3]} 2. c4 {[%clk 0:03:00.5]}
2... c5 {[%clk 0:02:59.8]} 3. d5 {[%clk 0:03:00.6]} 3... g6 {[%clk 0:03:00.2]}
4. Nc3 {[%clk 0:03:00.4]} 4... Bg7 {[%clk 0:03:00.6]} 5. e4 {[%clk 0:03:00.2]}
5... d6 {[%clk 0:02:59.1]} 6. Nf3 {[%clk 0:02:59.5]} 6... O-O {[%clk 0:02:59.1]}
7. h3 {[%clk 0:02:58]} 7... a6 {[%clk 0:02:59.5]} 8. Bd3 {[%clk 0:02:52]} 8...
b5 {[%clk 0:02:58.6]} 9. cxb5 {[%clk 0:02:50.5]} 9... axb5 {[%clk 0:02:57.8]}
10. Nxb5 {[%clk 0:02:45.6]} 10... Na6 {[%clk 0:02:58.2]} 11. Nc3 {[%clk
0:02:20.9]} 11... Nb4 {[%clk 0:02:51.8]} 12. Bc4 {[%clk 0:02:19.4]} 12... Ba6
{[%clk 0:02:51.7]} 13. Bxa6 {[%clk 0:02:04.8]} 13... Rxa6 {[%clk 0:02:52.6]} 14.
O-O {[%clk 0:02:04.3]} 14... Qa8 {[%clk 0:02:51.8]} 15. a4 {[%clk 0:02:04.2]}
15... Rb8 {[%clk 0:02:48.8]} 16. Qe2 {[%clk 0:02:03.7]} 16... Ne8 {[%clk
0:02:42]} 17. Ra3 {[%clk 0:01:58.2]} 17... Nc7 {[%clk 0:02:39.9]} 18. Bg5 {[%clk
0:01:57.9]} 18... e6 {[%clk 0:02:00.3]} 19. dxe6 {[%clk 0:01:57.1]} 19... Nxe6
{[%clk 0:02:01.2]} 20. Be3 {[%clk 0:01:53.6]} 20... Nd4 {[%clk 0:01:56.3]} 21.
Bxd4 {[%clk 0:01:48.3]} 21... cxd4 {[%clk 0:01:57.2]} 22. Nb5 {[%clk 0:01:43.5]}
22... d3 {[%clk 0:01:57.4]} 23. Qd2 {[%clk 0:00:53.3]} 23... Rxa4 {[%clk
0:01:51.8]} 24. Rxa4 {[%clk 0:00:43.9]} 24... Qxa4 {[%clk 0:01:50.9]} 25. Nxd6
{[%clk 0:00:44.1]} 25... Qc2 {[%clk 0:01:42.5]} 26. Rd1 {[%clk 0:00:43.2]} 26...
Bxb2 {[%clk 0:01:39.9]} 27. e5 {[%clk 0:00:28.5]} 27... Qxd2 {[%clk 0:01:33.7]}
28. Rxd2 {[%clk 0:00:27.6]} 28... Bc3 {[%clk 0:01:31.8]} 29. Rd1 {[%clk
0:00:27.6]} 29... Ra8 {[%clk 0:01:30.2]} 30. Ne4 {[%clk 0:00:23]} 30... Bb2
{[%clk 0:01:25.7]} 31. Nc5 {[%clk 0:00:18.1]} 31... Rd8 {[%clk 0:00:57.9]} 32.
Ne1 {[%clk 0:00:17.6]} 32... d2 {[%clk 0:00:25.6]} 33. Nf3 {[%clk 0:00:17.7]}
33... Bc1 {[%clk 0:00:25.9]} 34. Nb3 {[%clk 0:00:16.3]} 34... Na2 {[%clk
0:00:25.4]} 35. Nbxd2 {[%clk 0:00:08.6]} 35... Nc3 {[%clk 0:00:24.1]} 36. Rxc1
{[%clk 0:00:09]} 36... Ne2+ {[%clk 0:00:24.1]} 37. Kh2 {[%clk 0:00:08.7]} 37...
Nxc1 {[%clk 0:00:25]} 38. Ne4 {[%clk 0:00:08.7]} 38... Nd3 {[%clk 0:00:25.4]}
39. g4 {[%clk 0:00:05.8]} 39... h6 {[%clk 0:00:25.4]} 40. Kg3 {[%clk 0:00:05.7]}
40... Kf8 {[%clk 0:00:25.5]} 41. h4 {[%clk 0:00:05.8]} 41... Ke7 {[%clk
0:00:25.5]} 42. g5 {[%clk 0:00:03.9]} 42... h5 {[%clk 0:00:24.5]} 43. Nf6 {[%clk
0:00:02.8]} 43... Ra8 {[%clk 0:00:23.9]} 44. Nd2 {[%clk 0:00:02.6]} 44... Ra3
{[%clk 0:00:23.2]} 45. Nc4 {[%clk 0:00:02.4]} 45... Rb3 {[%clk 0:00:21.6]} 46.
Ne3 {[%clk 0:00:01.2]} 46... Nxe5 {[%clk 0:00:20.9]} 47. Nd5+ {[%clk 0:00:02]}
47... Ke6 {[%clk 0:00:20.6]} 48. Kf4 {[%clk 0:00:02.9]} 48... Nd3+ {[%clk
0:00:20.4]} 49. Ke4 {[%clk 0:00:03.4]} 49... Nxf2+ {[%clk 0:00:20.2]} 50. Kd4
{[%clk 0:00:03.5]} 50... Rd3+ {[%clk 0:00:18.7]} 51. Kc4 {[%clk 0:00:03.3]}
51... Rd2 {[%clk 0:00:18.8]} 52. Nf4+ {[%clk 0:00:03]} 52... Ke5 {[%clk
0:00:18.5]} 53. Nfd5 {[%clk 0:00:03.5]} 53... Ke4 {[%clk 0:00:18.1]} 54. Kc5
{[%clk 0:00:03.9]} 54... Nd3+ {[%clk 0:00:16.2]} 55. Kd6 {[%clk 0:00:04.1]}
55... Nf4 {[%clk 0:00:16.3]} 56. Ke7 {[%clk 0:00:02.9]} 56... Nxd5+ {[%clk
0:00:16.8]} 57. Nxd5 {[%clk 0:00:01.9]} 57... Rxd5 {[%clk 0:00:17.7]} 58. Kxf7
{[%clk 0:00:02.6]} 58... Kf5 {[%clk 0:00:18]} 0-1

[Event "*** Titled Tuesday Blitz"]
[Site "Chess.com"]
[Date "2021.04.06"]
[Round "4"]
[White "Semetey"]
[Black "ybruned"]
[Result "1-0"]
[WhiteElo "2518"]
[BlackElo "2331"]
[TimeControl "180+1"]
[EndTime "10:40:48 PDT"]
[Termination "Semetey won by checkmate"]

1. e4 {[%clk 0:02:50.9]} 1... b6 {[%clk 0:02:59.2]} 2. Nc3 {[%clk 0:02:51.8]}
2... Bb7 {[%clk 0:02:59.4]} 3. d4 {[%clk 0:02:52.2]} 3... e6 {[%clk 0:02:59.7]}
4. Bd3 {[%clk 0:02:52.3]} 4... Bb4 {[%clk 0:02:50]} 5. Ne2 {[%clk 0:02:51.9]}
5... Nf6 {[%clk 0:02:49.6]} 6. O-O {[%clk 0:02:51.5]} 6... O-O {[%clk
0:02:49.4]} 7. e5 {[%clk 0:02:49.5]} 7... Nd5 {[%clk 0:02:48.1]} 8. Ne4 {[%clk
0:02:48.8]} 8... f5 {[%clk 0:02:39]} 9. exf6 {[%clk 0:02:48.6]} 9... Nxf6 {[%clk
0:02:38.4]} 10. Bg5 {[%clk 0:02:49.2]} 10... Be7 {[%clk 0:02:37.1]} 11. N4g3
{[%clk 0:02:42]} 11... Nc6 {[%clk 0:02:12]} 12. c3 {[%clk 0:02:41.4]} 12... Nd5
{[%clk 0:02:00.2]} 13. Bd2 {[%clk 0:02:40.4]} 13... Bd6 {[%clk 0:01:46]} 14. Qc2
{[%clk 0:02:40.5]} 14... Qh4 {[%clk 0:01:31.5]} 15. Rae1 {[%clk 0:02:27]} 15...
Rae8 {[%clk 0:01:10]} 16. a3 {[%clk 0:02:10]} 16... Nce7 {[%clk 0:01:04.9]} 17.
Be4 {[%clk 0:01:58]} 17... Ba8 {[%clk 0:01:01.2]} 18. c4 {[%clk 0:01:39.2]}
18... Nf6 {[%clk 0:00:42.6]} 19. Bxa8 {[%clk 0:01:39]} 19... Rxa8 {[%clk
0:00:42.7]} 20. c5 {[%clk 0:01:39.3]} 20... Bxg3 {[%clk 0:00:38.8]} 21. hxg3
{[%clk 0:01:32.8]} 21... Qe4 {[%clk 0:00:36.7]} 22. Qc1 {[%clk 0:01:23.5]} 22...
Qf5 {[%clk 0:00:33.1]} 23. Bf4 {[%clk 0:01:19.9]} 23... Ned5 {[%clk 0:00:27.5]}
24. Be5 {[%clk 0:01:20.1]} 24... bxc5 {[%clk 0:00:22]} 25. Bxf6 {[%clk
0:01:10.8]} 25... Rxf6 {[%clk 0:00:17.9]} 26. dxc5 {[%clk 0:01:04.6]} 26... Rh6
{[%clk 0:00:15.6]} 27. f3 {[%clk 0:01:04.8]} 27... Rf8 {[%clk 0:00:08.8]} 28. c6
{[%clk 0:01:02.7]} 28... d6 {[%clk 0:00:08.7]} 29. Nd4 {[%clk 0:01:02.8]} 29...
Qh5 {[%clk 0:00:09.3]} 30. Nxe6 {[%clk 0:01:01.6]} 30... Re8 {[%clk 0:00:09.2]}
31. Nf4 {[%clk 0:00:59.6]} 31... Nxf4 {[%clk 0:00:08.9]} 32. Rxe8+ {[%clk
0:00:58.7]} 32... Qxe8 {[%clk 0:00:09.3]} 33. Qxf4 {[%clk 0:00:59.3]} 33... Rf6
{[%clk 0:00:08.6]} 34. Qc4+ {[%clk 0:00:58.6]} 34... Kh8 {[%clk 0:00:09.3]} 35.
Kf2 {[%clk 0:00:57.8]} 35... Re6 {[%clk 0:00:09.5]} 36. Qd3 {[%clk 0:00:58]}
36... h6 {[%clk 0:00:09.6]} 37. Rd1 {[%clk 0:00:55.7]} 37... Re5 {[%clk
0:00:09.9]} 38. Rd2 {[%clk 0:00:55.6]} 38... Qxc6 {[%clk 0:00:10.1]} 39. Rc2
{[%clk 0:00:54.7]} 39... Qb6+ {[%clk 0:00:10.3]} 40. Kf1 {[%clk 0:00:54.9]}
40... Rc5 {[%clk 0:00:09.6]} 41. b4 {[%clk 0:00:51.3]} 41... Rxc2 {[%clk
0:00:09.4]} 42. Qxc2 {[%clk 0:00:52.2]} 42... Qa6+ {[%clk 0:00:08.8]} 43. Kf2
{[%clk 0:00:51.8]} 43... Qxa3 {[%clk 0:00:09.3]} 44. Qxc7 {[%clk 0:00:51.9]}
44... Qxb4 {[%clk 0:00:09.8]} 45. Qxa7 {[%clk 0:00:52]} 45... Qd2+ {[%clk
0:00:07.6]} 46. Kg1 {[%clk 0:00:51.4]} 46... Qe1+ {[%clk 0:00:05.7]} 47. Kh2
{[%clk 0:00:51.7]} 47... Qe5 {[%clk 0:00:06.3]} 48. Qa8+ {[%clk 0:00:51]} 48...
Kh7 {[%clk 0:00:06.9]} 49. Qc8 {[%clk 0:00:50.2]} 49... d5 {[%clk 0:00:07.1]}
50. Qc2+ {[%clk 0:00:49.9]} 50... Kh8 {[%clk 0:00:06.7]} 51. f4 {[%clk
0:00:49.4]} 51... Qe4 {[%clk 0:00:05.3]} 52. Qc8+ {[%clk 0:00:49.6]} 52... Kh7
{[%clk 0:00:05.3]} 53. f5 {[%clk 0:00:49.2]} 53... Qe5 {[%clk 0:00:04.5]} 54.
Qd7 {[%clk 0:00:49]} 54... d4 {[%clk 0:00:04.6]} 55. Kh3 {[%clk 0:00:48.9]}
55... Qf6 {[%clk 0:00:05.2]} 56. Qd5 {[%clk 0:00:48.1]} 56... Kh8 {[%clk
0:00:04.8]} 57. g4 {[%clk 0:00:48.4]} 57... Kh7 {[%clk 0:00:05.3]} 58. Kg3
{[%clk 0:00:47.4]} 58... Kh8 {[%clk 0:00:04.9]} 59. Kf3 {[%clk 0:00:47]} 59...
Kh7 {[%clk 0:00:05.5]} 60. g3 {[%clk 0:00:47.2]} 60... Kh8 {[%clk 0:00:05.3]}
61. Ke4 {[%clk 0:00:45.9]} 61... Qg5 {[%clk 0:00:05.2]} 62. Qxd4 {[%clk
0:00:37.6]} 62... Qxg4+ {[%clk 0:00:05.3]} 63. Ke5 {[%clk 0:00:37.9]} 63...
Qxg3+ {[%clk 0:00:05.3]} 64. Ke6 {[%clk 0:00:38.3]} 64... Qe1+ {[%clk 0:00:05]}
65. Kf7 {[%clk 0:00:38.7]} 65... Qf1 {[%clk 0:00:01.4]} 66. Qxg7# {[%clk
0:00:37.9]} 1-0

[Event "*** Titled Tuesday Blitz"]
[Site "Chess.com"]
[Date "2021.04.06"]
[Round "4"]
[White "Rish_97"]
[Black "steka121"]
[Result "0-1"]
[WhiteElo "2688"]
[BlackElo "2348"]
[TimeControl "180+1"]
[EndTime "10:40:50 PDT"]
[Termination "steka121 won by resignation"]

1. e4 {[%clk 0:03:00.9]} 1... d5 {[%clk 0:02:58.8]} 2. exd5 {[%clk 0:03:00.2]}
2... Qxd5 {[%clk 0:02:58.8]} 3. Nc3 {[%clk 0:03:00.6]} 3... Qd8 {[%clk 0:02:59]}
4. d4 {[%clk 0:02:59.4]} 4... Nf6 {[%clk 0:02:59.9]} 5. Nf3 {[%clk 0:02:59.3]}
5... c6 {[%clk 0:03:00.3]} 6. Bc4 {[%clk 0:02:44]} 6... b5 {[%clk 0:03:00.1]} 7.
Bb3 {[%clk 0:02:43.4]} 7... e6 {[%clk 0:03:00.3]} 8. O-O {[%clk 0:02:41.3]} 8...
Be7 {[%clk 0:03:00.2]} 9. Qe2 {[%clk 0:02:41.7]} 9... O-O {[%clk 0:03:00.2]} 10.
Rd1 {[%clk 0:02:42.4]} 10... a5 {[%clk 0:02:50.5]} 11. a4 {[%clk 0:02:41.7]}
11... b4 {[%clk 0:02:50.8]} 12. Ne4 {[%clk 0:02:42.1]} 12... Ba6 {[%clk
0:02:51.2]} 13. Nxf6+ {[%clk 0:02:37.2]} 13... Bxf6 {[%clk 0:02:51.3]} 14. Bc4
{[%clk 0:02:38.1]} 14... Bxc4 {[%clk 0:02:46.7]} 15. Qxc4 {[%clk 0:02:39]} 15...
Qd5 {[%clk 0:02:47.1]} 16. Qe2 {[%clk 0:02:34.7]} 16... c5 {[%clk 0:02:36.3]}
17. dxc5 {[%clk 0:02:21.7]} 17... Qxc5 {[%clk 0:02:36.2]} 18. Be3 {[%clk
0:02:20.9]} 18... Qc7 {[%clk 0:02:33.2]} 19. Nd4 {[%clk 0:02:05.3]} 19... Bxd4
{[%clk 0:02:18.1]} 20. Rxd4 {[%clk 0:02:01.3]} 20... Nc6 {[%clk 0:02:18.1]} 21.
Rc4 {[%clk 0:01:57.1]} 21... Rfc8 {[%clk 0:02:00]} 22. Rd1 {[%clk 0:01:53.5]}
22... Rd8 {[%clk 0:01:49.5]} 23. h4 {[%clk 0:01:47.5]} 23... Rxd1+ {[%clk
0:01:48.6]} 24. Qxd1 {[%clk 0:01:48.4]} 24... Rc8 {[%clk 0:01:29.8]} 25. h5
{[%clk 0:01:38]} 25... h6 {[%clk 0:01:29.3]} 26. Qg4 {[%clk 0:01:05.8]} 26...
Kh8 {[%clk 0:01:24.8]} 27. Qe4 {[%clk 0:00:42.9]} 27... Qd7 {[%clk 0:01:22.1]}
28. g3 {[%clk 0:00:41.8]} 28... Ne7 {[%clk 0:01:19.4]} 29. Rxc8+ {[%clk
0:00:40.4]} 29... Qxc8 {[%clk 0:01:12.9]} 30. Bb6 {[%clk 0:00:35.1]} 30... Nd5
{[%clk 0:01:06]} 31. Bd4 {[%clk 0:00:16.5]} 31... f6 {[%clk 0:01:00.4]} 32. Qd3
{[%clk 0:00:15.1]} 32... Qc6 {[%clk 0:00:57.4]} 33. b3 {[%clk 0:00:09.5]} 33...
Kg8 {[%clk 0:00:49.4]} 34. Qc4 {[%clk 0:00:08.7]} 34... Qxc4 {[%clk 0:00:44.7]}
35. bxc4 {[%clk 0:00:09.6]} 35... Ne7 {[%clk 0:00:44.9]} 36. Bb6 {[%clk
0:00:08.5]} 36... Nc6 {[%clk 0:00:45.3]} 37. c5 {[%clk 0:00:09.1]} 37... e5
{[%clk 0:00:44.3]} 38. Kf1 {[%clk 0:00:09.8]} 38... Kf7 {[%clk 0:00:44.5]} 39.
Ke2 {[%clk 0:00:10.6]} 39... Ke6 {[%clk 0:00:45.2]} 40. Kd3 {[%clk 0:00:11.4]}
40... Kd5 {[%clk 0:00:45.7]} 41. f3 {[%clk 0:00:11.2]} 41... f5 {[%clk
0:00:45.9]} 42. g4 {[%clk 0:00:11.4]} 42... e4+ {[%clk 0:00:45.8]} 43. Ke3
{[%clk 0:00:10.2]} 43... exf3 {[%clk 0:00:44.7]} 44. gxf5 {[%clk 0:00:10.3]}
44... Nd4 {[%clk 0:00:43]} 45. Bxa5 {[%clk 0:00:07.4]} 45... Nxc2+ {[%clk
0:00:42.7]} 46. Kxf3 {[%clk 0:00:07.5]} 46... b3 {[%clk 0:00:43.4]} 47. Bc3
{[%clk 0:00:07.9]} 47... Kxc5 {[%clk 0:00:34.9]} 48. Ke2 {[%clk 0:00:07.8]}
48... Nd4+ {[%clk 0:00:32.2]} 49. Kd3 {[%clk 0:00:07.9]} 49... Nxf5 {[%clk
0:00:32.4]} 50. a5 {[%clk 0:00:07.5]} 50... Kb5 {[%clk 0:00:32.7]} 51. Ke4
{[%clk 0:00:07.8]} 51... Ng3+ {[%clk 0:00:32.2]} 52. Kf4 {[%clk 0:00:02.9]}
52... Nxh5+ {[%clk 0:00:32.3]} 53. Kf5 {[%clk 0:00:03.8]} 53... Nf6 {[%clk
0:00:29.3]} 54. Kg6 {[%clk 0:00:03.9]} 54... h5 {[%clk 0:00:29.7]} 55. Kxg7
{[%clk 0:00:03.8]} 55... h4 {[%clk 0:00:29.9]} 56. Kxf6 {[%clk 0:00:03.2]} 56...
h3 {[%clk 0:00:30.2]} 57. Be5 {[%clk 0:00:03.4]} 57... b2 {[%clk 0:00:30.2]} 0-1